[Event "Early-Titled-Tuesday-Blitz-May-28-2024"]
[Site "Chess.com"]
[Date "2024.05.28"]
[Round "1"]
[White "zverr1"]
[Black "GMthekingindian"]
[Result "0-1"]
[WhiteElo "2642"]
[BlackElo "2369"]
[TimeControl "180+1"]
[EndTime "8:10:23 PDT"]
[Termination "GMthekingindian won on time"]

1. e4 {[%clk 0:02:57]} 1... c5 {[%clk 0:02:59.9]} 2. Nf3 {[%clk 0:02:55.8]} 2...
e6 {[%clk 0:03:00.4]} 3. b3 {[%clk 0:02:55.7]} 3... b6 {[%clk 0:03:00.3]} 4. Bb2
{[%clk 0:02:55.7]} 4... Bb7 {[%clk 0:03:01]} 5. Qe2 {[%clk 0:02:55.2]} 5... Nc6
{[%clk 0:03:01.2]} 6. g3 {[%clk 0:02:55.1]} 6... d6 {[%clk 0:02:49.5]} 7. Bg2
{[%clk 0:02:54.9]} 7... Nf6 {[%clk 0:02:47.6]} 8. O-O {[%clk 0:02:54.2]} 8...
Be7 {[%clk 0:02:47.5]} 9. e5 {[%clk 0:02:53]} 9... dxe5 {[%clk 0:02:44.7]} 10.
Nxe5 {[%clk 0:02:52.6]} 10... Qc7 {[%clk 0:02:45.1]} 11. Nxc6 {[%clk 0:02:27.5]}
11... Bxc6 {[%clk 0:02:44]} 12. Nc3 {[%clk 0:02:15.1]} 12... Bxg2 {[%clk
0:02:41.6]} 13. Kxg2 {[%clk 0:02:16]} 13... O-O {[%clk 0:02:41.4]} 14. Qf3
{[%clk 0:02:14.4]} 14... Rad8 {[%clk 0:02:39.6]} 15. d3 {[%clk 0:02:13.8]} 15...
a6 {[%clk 0:02:27.9]} 16. a4 {[%clk 0:02:12.3]} 16... Nd5 {[%clk 0:02:25.6]} 17.
Nxd5 {[%clk 0:02:07.6]} 17... exd5 {[%clk 0:02:24.8]} 18. Rae1 {[%clk
0:01:57.4]} 18... Qd6 {[%clk 0:02:20.5]} 19. Be5 {[%clk 0:01:56.2]} 19... Qd7
{[%clk 0:02:17.1]} 20. Re2 {[%clk 0:01:40.1]} 20... Rfe8 {[%clk 0:01:56.6]} 21.
Rfe1 {[%clk 0:01:34.5]} 21... f6 {[%clk 0:01:43.8]} 22. Bf4 {[%clk 0:01:28.5]}
22... d4 {[%clk 0:01:42.6]} 23. h4 {[%clk 0:01:10.3]} 23... b5 {[%clk
0:01:33.8]} 24. axb5 {[%clk 0:01:05.6]} 24... axb5 {[%clk 0:01:34.7]} 25. h5
{[%clk 0:00:41.8]} 25... h6 {[%clk 0:01:29.9]} 26. g4 {[%clk 0:00:38.1]} 26...
Kh8 {[%clk 0:01:26.7]} 27. Qg3 {[%clk 0:00:29.1]} 27... Bf8 {[%clk 0:01:24.4]}
28. f3 {[%clk 0:00:25.8]} 28... Kg8 {[%clk 0:01:14.6]} 29. Qf2 {[%clk 0:00:19]}
29... Kf7 {[%clk 0:01:06.1]} 30. Re4 {[%clk 0:00:18]} 30... Rxe4 {[%clk
0:01:06]} 31. Rxe4 {[%clk 0:00:18.9]} 31... Re8 {[%clk 0:01:06.3]} 32. Qe2
{[%clk 0:00:19.1]} 32... Rxe4 {[%clk 0:01:04.4]} 33. Qxe4 {[%clk 0:00:20]} 33...
Qe7 {[%clk 0:01:05.1]} 34. Qg6+ {[%clk 0:00:10.2]} 34... Kg8 {[%clk 0:01:05.3]}
35. Kf2 {[%clk 0:00:10.4]} 35... Qe6 {[%clk 0:00:58.1]} 36. Bxh6 {[%clk
0:00:06]} 36... c4 {[%clk 0:00:41.2]} 37. Bf4 {[%clk 0:00:02.6]} 37... cxb3
{[%clk 0:00:41.1]} 38. cxb3 {[%clk 0:00:03.5]} 38... Qxb3 {[%clk 0:00:41.2]} 39.
h6 {[%clk 0:00:03.7]} 39... Qc2+ {[%clk 0:00:15.7]} 40. Kg3 {[%clk 0:00:03.7]}
40... Qd1 {[%clk 0:00:16.4]} 41. h7+ {[%clk 0:00:04]} 41... Kh8 {[%clk 0:00:17]}
42. Bh6 {[%clk 0:00:02]} 42... Qg1+ {[%clk 0:00:15.4]} 43. Kf4 {[%clk
0:00:02.3]} 43... Qh2+ {[%clk 0:00:15.6]} 44. Ke4 {[%clk 0:00:02.2]} 44... Qxh6
{[%clk 0:00:16.2]} 45. Qf7 {[%clk 0:00:02.6]} 45... Qxh7+ {[%clk 0:00:16.7]} 46.
Kxd4 {[%clk 0:00:03.3]} 46... Qg8 {[%clk 0:00:17.6]} 47. Qh5+ {[%clk 0:00:03.1]}
47... Qh7 {[%clk 0:00:18.2]} 48. Qe8 {[%clk 0:00:03.7]} 48... Qg8 {[%clk
0:00:18]} 49. Qh5+ {[%clk 0:00:03.7]} 49... Qh7 {[%clk 0:00:16.7]} 50. Qe8
{[%clk 0:00:03.9]} 50... Kg8 {[%clk 0:00:08]} 51. Qxb5 {[%clk 0:00:03.5]} 51...
Qg6 {[%clk 0:00:07.8]} 52. Qd5+ {[%clk 0:00:03.4]} 52... Qf7 {[%clk 0:00:08.4]}
53. Qf5 {[%clk 0:00:02.8]} 53... Qe7 {[%clk 0:00:08.2]} 54. Qd5+ {[%clk
0:00:02.5]} 54... Qf7 {[%clk 0:00:07.9]} 55. Qf5 {[%clk 0:00:03]} 55... Qa7+
{[%clk 0:00:07.3]} 56. Ke4 {[%clk 0:00:02.6]} 56... Qe7+ {[%clk 0:00:07.5]} 57.
Kd4 {[%clk 0:00:03]} 57... Qb4+ {[%clk 0:00:06.9]} 58. Ke3 {[%clk 0:00:03.1]}
58... Bc5+ {[%clk 0:00:07.1]} 59. Ke2 {[%clk 0:00:02.3]} 59... Qb2+ {[%clk
0:00:06.9]} 60. Kd1 {[%clk 0:00:02.5]} 60... Qb3+ {[%clk 0:00:04.4]} 61. Ke2
{[%clk 0:00:02.3]} 61... Bf8 {[%clk 0:00:04.4]} 62. Qe4 {[%clk 0:00:01.6]} 62...
Qf7 {[%clk 0:00:04.5]} 63. Kf2 {[%clk 0:00:02]} 63... Qe7 {[%clk 0:00:04.5]} 64.
Qd5+ {[%clk 0:00:02.3]} 64... Qf7 {[%clk 0:00:05]} 65. Qf5 {[%clk 0:00:02.9]}
65... g6 {[%clk 0:00:04]} 66. Qe4 {[%clk 0:00:03.1]} 66... Kg7 {[%clk
0:00:03.9]} 67. f4 {[%clk 0:00:03.7]} 67... Qe7 {[%clk 0:00:04.2]} 68. Qf3
{[%clk 0:00:01.7]} 68... Qd6 {[%clk 0:00:03.9]} 69. Kg2 {[%clk 0:00:02.2]} 69...
Qe7 {[%clk 0:00:04.2]} 70. Qd5 {[%clk 0:00:02.5]} 70... Qf7 {[%clk 0:00:04.4]}
71. Qe4 {[%clk 0:00:02.8]} 71... Qe7 {[%clk 0:00:04.8]} 72. Qd4 {[%clk
0:00:03.1]} 72... Qd6 {[%clk 0:00:04.5]} 73. Qe4 {[%clk 0:00:03.4]} 73... Be7
{[%clk 0:00:04.7]} 74. Kh3 {[%clk 0:00:02.1]} 74... Kf7 {[%clk 0:00:04.4]} 75.
Qe3 {[%clk 0:00:01.3]} 75... Qe6 {[%clk 0:00:04.6]} 76. Qf3 {[%clk 0:00:01.7]}
76... Qd6 {[%clk 0:00:04.5]} 77. Qe3 {[%clk 0:00:02.1]} 77... Qd7 {[%clk
0:00:03.9]} 78. Qg3 {[%clk 0:00:02.2]} 78... Bd6 {[%clk 0:00:04.2]} 79. Qh4
{[%clk 0:00:02.1]} 79... Qe8 {[%clk 0:00:03.8]} 80. Qh7+ {[%clk 0:00:02.4]}
80... Ke6 {[%clk 0:00:03]} 81. f5+ {[%clk 0:00:02.4]} 81... gxf5 {[%clk
0:00:01.9]} 82. Qxf5+ {[%clk 0:00:03.3]} 82... Kf7 {[%clk 0:00:02.3]} 83. Qh7+
{[%clk 0:00:03.5]} 83... Ke6 {[%clk 0:00:02.3]} 84. Qe4+ {[%clk 0:00:04.1]}
84... Kd7 {[%clk 0:00:01.4]} 85. Qa4+ {[%clk 0:00:03.2]} 85... Ke7 {[%clk
0:00:01.3]} 86. Qe4+ {[%clk 0:00:03.6]} 86... Kf7 {[%clk 0:00:01]} 87. Qh7+
{[%clk 0:00:03.5]} 87... Kf8 {[%clk 0:00:01.3]} 88. Qh6+ {[%clk 0:00:03.4]}
88... Ke7 {[%clk 0:00:01.6]} 89. Qe3+ {[%clk 0:00:03.6]} 89... Kd7 {[%clk
0:00:01.7]} 90. Qf3 {[%clk 0:00:03.1]} 90... Bc7 {[%clk 0:00:01.7]} 91. Qf5+
{[%clk 0:00:03.2]} 91... Qe6 {[%clk 0:00:01.9]} 92. Qb5+ {[%clk 0:00:03.4]}
92... Qc6 {[%clk 0:00:02.1]} 93. Qf5+ {[%clk 0:00:03.8]} 93... Qe6 {[%clk
0:00:02.1]} 94. Qh7+ {[%clk 0:00:04.2]} 94... Kc6 {[%clk 0:00:02.1]} 95. Qh8
{[%clk 0:00:03.7]} 95... Qd6 {[%clk 0:00:02]} 96. Qe8+ {[%clk 0:00:03.1]} 96...
Qd7 {[%clk 0:00:02.5]} 97. Qe4+ {[%clk 0:00:03.6]} 97... Qd5 {[%clk 0:00:03]}
98. Qa4+ {[%clk 0:00:04.4]} 98... Kd6 {[%clk 0:00:02.6]} 99. Qf4+ {[%clk
0:00:04.5]} 99... Qe5 {[%clk 0:00:02.4]} 100. Qb4+ {[%clk 0:00:04.1]} 100... Ke6
{[%clk 0:00:02.5]} 101. Qc4+ {[%clk 0:00:04.2]} 101... Ke7 {[%clk 0:00:01]} 102.
Qb4+ {[%clk 0:00:04.4]} 102... Bd6 {[%clk 0:00:01.4]} 103. Qb7+ {[%clk 0:00:05]}
103... Ke6 {[%clk 0:00:01.6]} 104. Qc8+ {[%clk 0:00:04.8]} 104... Kf7 {[%clk
0:00:02.2]} 105. Qd7+ {[%clk 0:00:04.7]} 105... Be7 {[%clk 0:00:02.4]} 106. Qa4
{[%clk 0:00:02]} 106... Qe3+ {[%clk 0:00:02.7]} 107. Kh4 {[%clk 0:00:02.1]}
107... f5+ {[%clk 0:00:02.3]} 108. g5 {[%clk 0:00:02.6]} 108... Qxg5+ {[%clk
0:00:02.3]} 109. Kh3 {[%clk 0:00:03.3]} 109... Qh5+ {[%clk 0:00:02.3]} 110. Kg3
{[%clk 0:00:03.7]} 110... Bd6+ {[%clk 0:00:02.6]} 111. Kg2 {[%clk 0:00:03.2]}
111... Qg4+ {[%clk 0:00:02.2]} 112. Kf1 {[%clk 0:00:03.2]} 112... Qxa4 {[%clk
0:00:01.7]} 0-1

[Event "Early-Titled-Tuesday-Blitz-May-28-2024"]
[Site "Chess.com"]
[Date "2024.05.28"]
[Round "1"]
[White "kecalk"]
[Black "Jospem"]
[Result "1/2-1/2"]
[WhiteElo "2544"]
[BlackElo "3024"]
[TimeControl "180+1"]
[EndTime "8:11:11 PDT"]
[Termination "Game drawn by repetition"]

1. Nf3 {[%clk 0:03:00.7]} 1... c5 {[%clk 0:02:59.7]} 2. g3 {[%clk 0:03:00.3]}
2... Nc6 {[%clk 0:02:59]} 3. Bg2 {[%clk 0:03:00.6]} 3... g6 {[%clk 0:02:59.5]}
4. O-O {[%clk 0:02:59.7]} 4... Bg7 {[%clk 0:02:59.9]} 5. c4 {[%clk 0:03:00.4]}
5... d6 {[%clk 0:03:00.1]} 6. Nc3 {[%clk 0:03:00.4]} 6... Bf5 {[%clk 0:03:00.4]}
7. d3 {[%clk 0:02:59.9]} 7... Qd7 {[%clk 0:02:56.2]} 8. e4 {[%clk 0:02:48.6]}
8... Bg4 {[%clk 0:02:54.5]} 9. Nd5 {[%clk 0:02:16]} 9... e6 {[%clk 0:02:51.2]}
10. Ne3 {[%clk 0:02:14.8]} 10... Bxf3 {[%clk 0:02:51.2]} 11. Bxf3 {[%clk
0:02:15.1]} 11... Nge7 {[%clk 0:02:52.1]} 12. Rb1 {[%clk 0:02:10.4]} 12... O-O
{[%clk 0:02:51.5]} 13. Bg2 {[%clk 0:02:09.6]} 13... a6 {[%clk 0:02:51.3]} 14. a3
{[%clk 0:02:05.5]} 14... b5 {[%clk 0:02:50.6]} 15. b4 {[%clk 0:02:05.8]} 15...
cxb4 {[%clk 0:02:50.6]} 16. axb4 {[%clk 0:02:05.6]} 16... Rab8 {[%clk
0:02:50.8]} 17. Bd2 {[%clk 0:01:52.4]} 17... Nd4 {[%clk 0:02:47.9]} 18. Nc2
{[%clk 0:01:44.6]} 18... Rfc8 {[%clk 0:02:45.3]} 19. Nxd4 {[%clk 0:01:43.4]}
19... Bxd4 {[%clk 0:02:46.2]} 20. Qe2 {[%clk 0:01:35.1]} 20... Nc6 {[%clk
0:02:43.8]} 21. Kh1 {[%clk 0:01:25.6]} 21... Bg7 {[%clk 0:02:43.9]} 22. f4
{[%clk 0:01:23.8]} 22... Nd4 {[%clk 0:02:44]} 23. Qe3 {[%clk 0:01:16.5]} 23...
bxc4 {[%clk 0:02:42.1]} 24. dxc4 {[%clk 0:01:17.4]} 24... Rxc4 {[%clk
0:02:35.4]} 25. Qd3 {[%clk 0:01:14.8]} 25... Rbc8 {[%clk 0:02:26.4]} 26. Rfc1
{[%clk 0:00:53.1]} 26... d5 {[%clk 0:01:38.6]} 27. exd5 {[%clk 0:00:49.3]} 27...
exd5 {[%clk 0:01:36.7]} 28. Be3 {[%clk 0:00:35.1]} 28... Qf5 {[%clk 0:01:05.1]}
29. Qxf5 {[%clk 0:00:30.8]} 29... Nxf5 {[%clk 0:01:05.1]} 30. Bc5 {[%clk
0:00:28.3]} 30... Rd8 {[%clk 0:00:50.7]} 31. Bf1 {[%clk 0:00:22.7]} 31... Rxc1
{[%clk 0:00:35.3]} 32. Rxc1 {[%clk 0:00:23.6]} 32... Ra8 {[%clk 0:00:35.8]} 33.
Bg2 {[%clk 0:00:17.5]} 33... Rd8 {[%clk 0:00:36]} 34. Bf1 {[%clk 0:00:17.7]}
34... Bb2 {[%clk 0:00:36.4]} 35. Rb1 {[%clk 0:00:15.6]} 35... Bd4 {[%clk
0:00:27.2]} 36. Bxa6 {[%clk 0:00:14.4]} 36... Rb8 {[%clk 0:00:28]} 37. Bxd4
{[%clk 0:00:12]} 37... Nxd4 {[%clk 0:00:28.9]} 38. b5 {[%clk 0:00:12.7]} 38...
Ne6 {[%clk 0:00:20.8]} 39. b6 {[%clk 0:00:10.3]} 39... Kf8 {[%clk 0:00:19.6]}
40. Kg2 {[%clk 0:00:05.8]} 40... Ke7 {[%clk 0:00:19.9]} 41. Kf3 {[%clk
0:00:05.3]} 41... Kd6 {[%clk 0:00:20.6]} 42. Ke3 {[%clk 0:00:05.3]} 42... Nc5
{[%clk 0:00:16.5]} 43. Bf1 {[%clk 0:00:04.3]} 43... Re8+ {[%clk 0:00:17.1]} 44.
Kd4 {[%clk 0:00:03.4]} 44... Re4+ {[%clk 0:00:10.8]} 45. Kc3 {[%clk 0:00:03.6]}
45... Kc6 {[%clk 0:00:11.7]} 46. Bg2 {[%clk 0:00:03.8]} 46... Rc4+ {[%clk
0:00:08.8]} 47. Kd2 {[%clk 0:00:03.9]} 47... Rd4+ {[%clk 0:00:06.5]} 48. Ke2
{[%clk 0:00:04]} 48... Ra4 {[%clk 0:00:04.6]} 49. Rb2 {[%clk 0:00:03.5]} 49...
f5 {[%clk 0:00:04.1]} 50. h3 {[%clk 0:00:03.5]} 50... Ra3 {[%clk 0:00:03.3]} 51.
Bf3 {[%clk 0:00:03.5]} 51... Ra4 {[%clk 0:00:04]} 52. b7 {[%clk 0:00:02.7]}
52... Nxb7 {[%clk 0:00:04.2]} 53. Bxd5+ {[%clk 0:00:03.3]} 53... Kxd5 {[%clk
0:00:05.1]} 54. Rxb7 {[%clk 0:00:03.9]} 54... Ra3 {[%clk 0:00:05.6]} 55. Kf2
{[%clk 0:00:03.9]} 55... Ra2+ {[%clk 0:00:05.8]} 56. Kf3 {[%clk 0:00:03.9]}
56... Ra3+ {[%clk 0:00:06.7]} 57. Kg2 {[%clk 0:00:04.4]} 57... Ra2+ {[%clk
0:00:05.1]} 58. Kf3 {[%clk 0:00:04.8]} 58... Ke6 {[%clk 0:00:04.3]} 59. Rxh7
{[%clk 0:00:04.7]} 59... Ra3+ {[%clk 0:00:05]} 60. Kg2 {[%clk 0:00:05.2]} 60...
Kf6 {[%clk 0:00:05.9]} 61. h4 {[%clk 0:00:05.5]} 61... Ra2+ {[%clk 0:00:06.8]}
62. Kh3 {[%clk 0:00:06]} 62... Ra3 {[%clk 0:00:07.7]} 63. Rb7 {[%clk 0:00:05.8]}
63... Ra1 {[%clk 0:00:08.6]} 64. Rb6+ {[%clk 0:00:06.2]} 64... Kg7 {[%clk
0:00:09.5]} 65. Rb7+ {[%clk 0:00:07.1]} 65... Kh6 {[%clk 0:00:09.9]} 66. Rb6
{[%clk 0:00:08]} 66... Rh1+ {[%clk 0:00:10]} 67. Kg2 {[%clk 0:00:08.9]} 67...
Rc1 {[%clk 0:00:10.8]} 68. Kh3 {[%clk 0:00:09.2]} 68... Rc2 {[%clk 0:00:11.2]}
69. Ra6 {[%clk 0:00:09]} 69... Rb2 {[%clk 0:00:10.1]} 70. Rc6 {[%clk 0:00:08.7]}
70... Ra2 {[%clk 0:00:10.4]} 71. Rb6 {[%clk 0:00:08.8]} 71... Ra1 {[%clk
0:00:10.8]} 72. Kg2 {[%clk 0:00:08.6]} 72... Ra3 {[%clk 0:00:10.7]} 73. Rb8
{[%clk 0:00:08.2]} 73... Kh5 {[%clk 0:00:10.5]} 74. Rb6 {[%clk 0:00:06.2]} 74...
Rc3 {[%clk 0:00:10]} 75. Ra6 {[%clk 0:00:06]} 75... Rb3 {[%clk 0:00:09.5]} 76.
Rc6 {[%clk 0:00:05.9]} 76... Rd3 {[%clk 0:00:10.1]} 77. Rb6 {[%clk 0:00:06.1]}
77... Rc3 {[%clk 0:00:10.8]} 78. Rd6 {[%clk 0:00:06.5]} 78... Ra3 {[%clk
0:00:10.9]} 79. Rc6 {[%clk 0:00:06.8]} 79... Ra8 {[%clk 0:00:11.5]} 80. Rb6
{[%clk 0:00:06.9]} 80... Rc8 {[%clk 0:00:11.8]} 81. Kh3 {[%clk 0:00:07.6]} 81...
Rd8 {[%clk 0:00:12.2]} 82. Rb7 {[%clk 0:00:07.8]} 82... Kh6 {[%clk 0:00:12.8]}
83. Rb6 {[%clk 0:00:08.2]} 83... Re8 {[%clk 0:00:13.3]} 84. Ra6 {[%clk
0:00:08.1]} 84... Rb8 {[%clk 0:00:13.5]} 85. Rc6 {[%clk 0:00:08.4]} 85... Rb3
{[%clk 0:00:13.9]} 86. Rc8 {[%clk 0:00:08]} 86... Ra3 {[%clk 0:00:13.5]} 87.
Rh8+ {[%clk 0:00:07.8]} 87... Kg7 {[%clk 0:00:14.2]} 88. Rb8 {[%clk 0:00:08.7]}
88... Ra1 {[%clk 0:00:14.9]} 89. Rb7+ {[%clk 0:00:09.2]} 89... Kh6 {[%clk
0:00:15.8]} 90. Rb8 {[%clk 0:00:09.7]} 90... Rh1+ {[%clk 0:00:15.5]} 91. Kg2
{[%clk 0:00:10.2]} 91... Rd1 {[%clk 0:00:16.4]} 92. Kh3 {[%clk 0:00:10.5]} 92...
Rd2 {[%clk 0:00:16.5]} 93. Rh8+ {[%clk 0:00:10.3]} 93... Kg7 {[%clk 0:00:17.1]}
94. Rb8 {[%clk 0:00:11.2]} 94... Rd7 {[%clk 0:00:17.3]} 95. Rb5 {[%clk
0:00:11.2]} 95... Rd6 {[%clk 0:00:17.6]} 96. h5 {[%clk 0:00:11.2]} 96... Kh6
{[%clk 0:00:15.1]} 97. hxg6 {[%clk 0:00:10.6]} 97... Kxg6 {[%clk 0:00:16]} 98.
Kh4 {[%clk 0:00:10.9]} 98... Rc6 {[%clk 0:00:16.3]} 99. Ra5 {[%clk 0:00:10.9]}
99... Rb6 {[%clk 0:00:16.5]} 100. Rc5 {[%clk 0:00:11]} 100... Ra6 {[%clk
0:00:16.9]} 101. Rb5 {[%clk 0:00:11.3]} 101... Rc6 {[%clk 0:00:17]} 102. Rb8
{[%clk 0:00:11.4]} 102... Rc1 {[%clk 0:00:17.2]} 103. Rb6+ {[%clk 0:00:11.7]}
103... Kf7 {[%clk 0:00:15.1]} 104. Kg5 {[%clk 0:00:11.9]} 104... Rc3 {[%clk
0:00:15.8]} 105. Kxf5 {[%clk 0:00:09.8]} 105... Rxg3 {[%clk 0:00:15.5]} 106.
Rb7+ {[%clk 0:00:10.1]} 106... Kg8 {[%clk 0:00:15]} 107. Kf6 {[%clk 0:00:11]}
107... Rc3 {[%clk 0:00:15]} 108. f5 {[%clk 0:00:10.1]} 108... Rc6+ {[%clk
0:00:15.5]} 109. Kg5 {[%clk 0:00:10.7]} 109... Ra6 {[%clk 0:00:15]} 110. Re7
{[%clk 0:00:10.5]} 110... Rb6 {[%clk 0:00:07.9]} 111. Re6 {[%clk 0:00:10.8]}
111... Rb7 {[%clk 0:00:04.9]} 112. Rg6+ {[%clk 0:00:08.8]} 112... Kf8 {[%clk
0:00:05.1]} 113. Rh6 {[%clk 0:00:08.5]} 113... Kg7 {[%clk 0:00:03.2]} 114. Rg6+
{[%clk 0:00:08.4]} 114... Kf8 {[%clk 0:00:03.6]} 115. Rc6 {[%clk 0:00:09.3]}
115... Kf7 {[%clk 0:00:02.7]} 116. Rh6 {[%clk 0:00:08.2]} 116... Kg7 {[%clk
0:00:02.7]} 117. f6+ {[%clk 0:00:08.6]} 117... Kg8 {[%clk 0:00:03.1]} 118. Kg6
{[%clk 0:00:08.8]} 118... Rg7+ {[%clk 0:00:02.5]} 119. Kf5 {[%clk 0:00:08.4]}
119... Ra7 {[%clk 0:00:03.4]} 120. Rg6+ {[%clk 0:00:07.7]} 120... Kf8 {[%clk
0:00:03.4]} 121. Rg1 {[%clk 0:00:07.6]} 121... Ra5+ {[%clk 0:00:03]} 122. Kg6
{[%clk 0:00:07.7]} 122... Ra2 {[%clk 0:00:03.9]} 123. Rg3 {[%clk 0:00:04.6]}
123... Rf2 {[%clk 0:00:04.3]} 124. Rg5 {[%clk 0:00:04.8]} 124... Rf1 {[%clk
0:00:04.7]} 125. Rg4 {[%clk 0:00:05.1]} 125... Rf2 {[%clk 0:00:05.1]} 126. Rg3
{[%clk 0:00:05]} 126... Rf1 {[%clk 0:00:05.5]} 127. Rb3 {[%clk 0:00:05.3]}
127... Rg1+ {[%clk 0:00:05.8]} 128. Kf5 {[%clk 0:00:05.9]} 128... Rf1+ {[%clk
0:00:06.2]} 129. Kg6 {[%clk 0:00:06.5]} 129... Rg1+ {[%clk 0:00:06.6]} 130. Kf5
{[%clk 0:00:07.1]} 130... Rf1+ {[%clk 0:00:07.1]} 131. Kg6 {[%clk 0:00:07.7]}
1/2-1/2

[Event "Early-Titled-Tuesday-Blitz-May-28-2024"]
[Site "Chess.com"]
[Date "2024.05.28"]
[Round "2"]
[White "Msb2"]
[Black "Renatoforf"]
[Result "1-0"]
[WhiteElo "3045"]
[BlackElo "2086"]
[TimeControl "180+1"]
[EndTime "8:12:42 PDT"]
[Termination "Msb2 won by resignation"]

1. d4 {[%clk 0:03:00.9]} 1... Nf6 {[%clk 0:02:58.2]} 2. c4 {[%clk 0:03:00.2]}
2... g6 {[%clk 0:02:56]} 3. Nc3 {[%clk 0:03:00.6]} 3... Bg7 {[%clk 0:02:55.4]}
4. e4 {[%clk 0:03:00.6]} 4... d6 {[%clk 0:02:54.8]} 5. Be2 {[%clk 0:03:01.2]}
5... O-O {[%clk 0:02:54.7]} 6. Nf3 {[%clk 0:03:01.8]} 6... c5 {[%clk 0:02:53.6]}
7. O-O {[%clk 0:03:01.6]} 7... cxd4 {[%clk 0:02:51.4]} 8. Nxd4 {[%clk
0:03:02.5]} 8... Nc6 {[%clk 0:02:51.3]} 9. Be3 {[%clk 0:03:03.2]} 9... Bd7
{[%clk 0:02:51]} 10. h3 {[%clk 0:03:03.2]} 10... Nxd4 {[%clk 0:02:48.2]} 11.
Bxd4 {[%clk 0:03:04.1]} 11... Bc6 {[%clk 0:02:47.8]} 12. Qc2 {[%clk 0:03:04.8]}
12... a5 {[%clk 0:02:47.9]} 13. Rad1 {[%clk 0:03:04.7]} 13... a4 {[%clk
0:02:42.3]} 14. c5 {[%clk 0:03:02.5]} 14... dxc5 {[%clk 0:02:31.3]} 15. Bxf6
{[%clk 0:03:01.6]} 1-0

[Event "Early-Titled-Tuesday-Blitz-May-28-2024"]
[Site "Chess.com"]
[Date "2024.05.28"]
[Round "2"]
[White "Balla_Tamas"]
[Black "eltenedor"]
[Result "1-0"]
[WhiteElo "2480"]
[BlackElo "2183"]
[TimeControl "180+1"]
[EndTime "8:13:22 PDT"]
[Termination "Balla_Tamas won by resignation"]

1. Nf3 {[%clk 0:03:00.9]} 1... b6 {[%clk 0:02:59.2]} 2. e4 {[%clk 0:02:59.8]}
2... Bb7 {[%clk 0:02:58.3]} 3. Nc3 {[%clk 0:02:55.7]} 3... e6 {[%clk 0:02:57.6]}
4. d4 {[%clk 0:02:54.2]} 4... d6 {[%clk 0:02:54.7]} 5. Bd3 {[%clk 0:02:52]} 5...
Nd7 {[%clk 0:02:54.6]} 6. O-O {[%clk 0:02:51.6]} 6... g6 {[%clk 0:02:54.8]} 7.
Bg5 {[%clk 0:02:49.4]} 7... Ne7 {[%clk 0:02:49.3]} 8. Qe2 {[%clk 0:02:44.7]}
8... h6 {[%clk 0:02:48.7]} 9. Bh4 {[%clk 0:02:44.5]} 9... Bg7 {[%clk 0:02:48.4]}
10. e5 {[%clk 0:02:44.4]} 10... Bxf3 {[%clk 0:02:20.8]} 11. Qxf3 {[%clk
0:02:42.6]} 11... dxe5 {[%clk 0:02:20.5]} 12. Bxe7 {[%clk 0:02:30.4]} 12... Qxe7
{[%clk 0:02:16.3]} 13. Qxa8+ {[%clk 0:02:29.9]} 1-0

[Event "Early-Titled-Tuesday-Blitz-May-28-2024"]
[Site "Chess.com"]
[Date "2024.05.28"]
[Round "2"]
[White "GianmarcoVaR"]
[Black "hsd2016"]
[Result "1-0"]
[WhiteElo "2725"]
[BlackElo "2413"]
[TimeControl "180+1"]
[EndTime "8:13:39 PDT"]
[Termination "GianmarcoVaR won by resignation"]

1. g3 {[%clk 0:02:59.9]} 1... g6 {[%clk 0:02:59.1]} 2. Bg2 {[%clk 0:03:00.3]}
2... Bg7 {[%clk 0:02:59.7]} 3. Nf3 {[%clk 0:03:01.2]} 3... Nf6 {[%clk
0:02:59.9]} 4. O-O {[%clk 0:03:01.9]} 4... c5 {[%clk 0:03:00.2]} 5. d3 {[%clk
0:03:02.7]} 5... O-O {[%clk 0:03:00.4]} 6. Nc3 {[%clk 0:03:03.3]} 6... d5 {[%clk
0:03:00.5]} 7. e4 {[%clk 0:03:04]} 7... dxe4 {[%clk 0:03:00.3]} 8. dxe4 {[%clk
0:03:04.9]} 8... Qxd1 {[%clk 0:02:58.7]} 9. Rxd1 {[%clk 0:03:05.8]} 9... Nc6
{[%clk 0:02:57.8]} 10. Be3 {[%clk 0:03:05.7]} 10... b6 {[%clk 0:02:19.9]} 11. h3
{[%clk 0:03:05.7]} 11... Bb7 {[%clk 0:02:13]} 12. Ne1 {[%clk 0:03:04.8]} 12...
Rad8 {[%clk 0:02:11]} 13. f4 {[%clk 0:02:59.5]} 13... Nd4 {[%clk 0:02:06.8]} 14.
e5 {[%clk 0:02:59.9]} 14... Nd5 {[%clk 0:01:48.1]} 15. Nxd5 {[%clk 0:02:59.5]}
15... Bxd5 {[%clk 0:01:48]} 16. Bxd5 {[%clk 0:03:00.4]} 16... Rxd5 {[%clk
0:01:48.3]} 17. c3 {[%clk 0:03:01.1]} 1-0

[Event "Early-Titled-Tuesday-Blitz-May-28-2024"]
[Site "Chess.com"]
[Date "2024.05.28"]
[Round "2"]
[White "Kumi29"]
[Black "ajedrez-facil"]
[Result "1-0"]
[WhiteElo "2562"]
[BlackElo "2234"]
[TimeControl "180+1"]
[EndTime "8:13:44 PDT"]
[Termination "Kumi29 won by resignation"]

1. d4 {[%clk 0:02:55.2]} 1... d6 {[%clk 0:02:58.9]} 2. e4 {[%clk 0:02:53.8]}
2... g6 {[%clk 0:02:59.2]} 3. h4 {[%clk 0:02:53.4]} 3... h5 {[%clk 0:02:58.8]}
4. Nf3 {[%clk 0:02:53.1]} 4... Bg7 {[%clk 0:02:59.4]} 5. Ng5 {[%clk 0:02:53.5]}
5... Bg4 {[%clk 0:02:52.2]} 6. f3 {[%clk 0:02:51.4]} 6... Bd7 {[%clk 0:02:51.8]}
7. Bc4 {[%clk 0:02:51.6]} 7... e6 {[%clk 0:02:51.5]} 8. Nc3 {[%clk 0:02:49.9]}
8... a6 {[%clk 0:02:49.2]} 9. a4 {[%clk 0:02:49.3]} 9... Nc6 {[%clk 0:02:48.7]}
10. Be3 {[%clk 0:02:49.3]} 10... Nge7 {[%clk 0:02:47.9]} 11. d5 {[%clk
0:02:42.5]} 11... exd5 {[%clk 0:02:45.5]} 12. Nxd5 {[%clk 0:02:42.3]} 12... Nxd5
{[%clk 0:02:42.8]} 13. Qxd5 {[%clk 0:02:36.4]} 13... Ne5 {[%clk 0:02:25.9]} 14.
Nxf7 {[%clk 0:02:35]} 14... c6 {[%clk 0:02:24.7]} 15. Nxd6+ {[%clk 0:02:25.4]}
15... Ke7 {[%clk 0:02:20.5]} 16. Bg5+ {[%clk 0:02:13]} 16... Bf6 {[%clk
0:02:19.5]} 17. Qxe5+ {[%clk 0:02:13.2]} 1-0

[Event "Early-Titled-Tuesday-Blitz-May-28-2024"]
[Site "Chess.com"]
[Date "2024.05.28"]
[Round "2"]
[White "ZachHKL"]
[Black "Slovineanu"]
[Result "0-1"]
[WhiteElo "2341"]
[BlackElo "2552"]
[TimeControl "180+1"]
[EndTime "8:13:59 PDT"]
[Termination "Slovineanu won by resignation"]

1. c4 {[%clk 0:03:00.9]} 1... e5 {[%clk 0:02:59.7]} 2. g3 {[%clk 0:02:59.9]}
2... c6 {[%clk 0:02:59]} 3. d4 {[%clk 0:02:59]} 3... exd4 {[%clk 0:02:55.6]} 4.
Qxd4 {[%clk 0:02:58.5]} 4... Nf6 {[%clk 0:02:53.1]} 5. Bg2 {[%clk 0:02:58.7]}
5... Be7 {[%clk 0:02:52.4]} 6. Nc3 {[%clk 0:02:58.7]} 6... O-O {[%clk
0:02:52.5]} 7. Nf3 {[%clk 0:02:57.6]} 7... d5 {[%clk 0:02:47.3]} 8. cxd5 {[%clk
0:02:57.3]} 8... cxd5 {[%clk 0:02:46]} 9. O-O {[%clk 0:02:57.4]} 9... Nc6 {[%clk
0:02:46.5]} 10. Qa4 {[%clk 0:02:56.1]} 10... Be6 {[%clk 0:02:27.4]} 11. Rd1
{[%clk 0:02:53.6]} 11... Bc5 {[%clk 0:02:20.1]} 12. Bg5 {[%clk 0:02:45.1]} 12...
h6 {[%clk 0:02:13.6]} 13. Bxf6 {[%clk 0:02:42.4]} 13... Qxf6 {[%clk 0:02:14.1]}
14. Nxd5 {[%clk 0:02:40.9]} 14... Qxb2 {[%clk 0:02:08.1]} 15. Rab1 {[%clk
0:02:34.5]} 15... Qxe2 {[%clk 0:02:07.3]} 16. Rf1 {[%clk 0:02:26.6]} 16... Bxd5
{[%clk 0:02:05.6]} 17. Qb5 {[%clk 0:02:19.6]} 17... Qxb5 {[%clk 0:01:56.3]} 18.
Rxb5 {[%clk 0:02:19]} 0-1